[Event "Int SVK-ch Open 2020"]
[Site "Drienica"]
[Date "2020.08.08"]
[Round "2.10"]
[White "Kucik, Patrik"]
[Black "Geffert, Peter"]
[Result "1/2-1/2"]
[ECO "D60"]
[WhiteElo "1561"]
[BlackElo "1857"]
[Annotator "NA RC"]
[PlyCount "108"]
[EventDate "2020.08.07"]
[EventType "swiss"]
[EventCountry "SVK"]
[SourceTitle "playchess.com"]
[Source "ChessBase"]
[SourceQuality "1"]
[TimeControl "40/5400+30:1800+30"]

{[%evp 11,108,16,32767,10,32767,32767,32767,2,32767,11,5,32767,32767,-31,-23,-20,6,-3,32767,-5,32767,-9,-11,-31,32767,-47,32767,32767,-43,32767,-13,32767,-41,32767,-24,-14,-22,-13,32767,4,14,-26,0,32767,0,-11,0,-36,0,-20,-9,-36,32767,32767,0,-26,50,-29,0,-28,32767,-43,32767,-17,32767,32767,32767,-20,12,-54,32767,-30,-56,-34,41,7,25,0,24,0,15,0,0,0,0,0,36,0,32767,0,32767,32767,32767,32767,98,0,175,0,3]} 1. d4 {[%emt 0:00:00]} d5 {[%emt 0:00:00]} 2. c4 {[%emt 0:00:26]} e6 {[%emt 0:00:00]} 3. Nc3 {[%emt 0:00:36]} Nf6 {[%emt 0:00:00]} 4. Bg5 {[%emt 0:05:20]} Be7 {[%emt 0:00:15]} 5. e3 {[%emt 0:00:33]} O-O {[%emt 0:00:32]} 6. Nf3 {[%emt 0:00:26]} Nbd7 {[%emt 0:01:51]} 7. Bd3 {[%emt 0:05:12]} h6 {[%emt 0:01:53]} 8. Bh4 {[%emt 0:01:06]} b6 {[%emt 0:02:41]} 9. Rc1 {[%emt 0:01:49]} c5 {[%emt 0:02:21]} 10. cxd5 {[%emt 0:01:17]} Nxd5 {[%emt 0:02:04]} 11. Bxe7 {[%emt 0:02:18]} Qxe7 {[%emt 0:00:13]} 12. O-O {[%emt 0:00:31]} Bb7 {[%emt 0:01:36]} 13. Nxd5 {[%emt 0:07:48]} exd5 {[%emt 0:00:56]} 14. Re1 {[%emt 0:02:44] D59: Queen's Gambit Declined: Tartakower Defence: Main line (8 cxd5 Nxd5).} c4 {[%emt 0:11:31]} 15. Bb1 {[%emt 0:01:10]} b5 {[%emt 0:03:04] [#]} 16. Qc2 $146 {[%emt 0:11:30]} ({Predecessor:} 16. Nd2 f5 17. Nf1 g6 18. Ng3 Nf6 19. Ne2 Qf7 20. f3 Ne8 21. Qd2 Nd6 22. Nf4 {0-1 (59) Jorgensen,M (2201)-Nielsen,L (2221) Denmark 2006}) 16... g6 {[%emt 0:02:12]} 17. a3 {[%emt 0:00:28]} a5 {[%emt 0:03:28]} 18. h3 {[%emt 0:01:23]} Rfe8 {[%emt 0:03:32]} 19. Qd2 {[%emt 0:04:25]} Kg7 {[%emt 0:17:18]} 20. Nh2 {[%emt 0:03:05]} Nf6 {[%emt 0:01:34]} 21. Nf3 {[%emt 0:00:29]} Ne4 {[%emt 0:05:15]} 22. Bxe4 {[%emt 0:03:40]} Qxe4 {[%emt 0:00:24]} (22... dxe4 $17 23. Nh2 Bd5) 23. Ne5 {[%emt 0:00:48]} f6 {[%emt 0:01:50]} 24. Nd7 {[%emt 0:02:53]} Bc6 {[%emt 0:06:27]} 25. Nc5 {[%emt 0:01:09]} Qe7 {[%emt 0:01:38]} 26. Qc2 {[%emt 0:01:57]} Qd6 {[%emt 0:04:31]} 27. Qe2 {[%emt 0:07:12]} Bd7 {[%emt 0:03:27]} 28. Qf3 {[%emt 0:02:18]} Bf5 {[%emt 0:01:35]} 29. Qd1 {[%emt 0:02:02]} g5 {[%emt 0:01:44]} 30. Qh5 {[%emt 0:01:30]} Bg6 {[%emt 0:00:49]} 31. Qf3 {[%emt 0:01:17]} Re7 {[%emt 0:01:24]} 32. Qd1 {[%emt 0:02:57]} Rh8 {[%emt 0:01:30]} 33. Qd2 {[%emt 0:01:53]} Qc7 {[%emt 0:01:59]} (33... a4 $11) 34. Qd1 {[%emt 0:01:12]} ({White should play} 34. b3 $14) 34... h5 {[%emt 0:00:33]} 35. Qe2 {[%emt 0:03:07]} h4 {[%emt 0:06:29]} 36. Qg4 {[%emt 0:01:36]} Kh6 {[%emt 0:02:06]} 37. Qf3 {[%emt 0:01:35]} Qd6 {[%emt 0:00:22]} 38. Qd1 {[%emt 0:01:19]} Rg8 {[%emt 0:01:08]} 39. Qd2 {[%emt 0:06:44]} Qc7 {[%emt 0:01:41]} 40. Ra1 {[%emt 0:01:06]} ({White should try} 40. b3 $11) 40... Bf5 {[%emt 0:02:20]} 41. Rac1 {[%emt 0:31:16]} Kh7 {[%emt 0:34:06]} 42. f3 {[%emt 0:03:04]} Bc8 {[%emt 0:00:00]} (42... Rge8 $11) 43. e4 {[%emt 0:00:00]} dxe4 {[%emt 0:00:00]} 44. Rxe4 {[%emt 0:00:00]} Rge8 {[%emt 0:00:00]} 45. Rce1 {[%emt 0:00:00]} Rxe4 {[%emt 0:00:00]} 46. Rxe4 {[%emt 0:00:00]} (46. fxe4 $5 {[%cal Re4e5]} Kg6 47. Rf1 $14) 46... Rxe4 {[%emt 0:00:00]} 47. Nxe4 {[%emt 0:00:00]} Kg7 {[%emt 0:00:00]} 48. d5 {[%emt 0:00:00]} Qb6+ {[%emt 0:00:00]} 49. Kh1 {[%emt 0:00:00]} Bd7 {[%emt 0:00:00]} 50. d6 {[%emt 0:00:00]} Kf7 {[%emt 0:00:00]} 51. Qc3 Qd8 52. Qd4 {[%emt 0:00:00]} Bc6 {[%emt 0:00:17]} 53. Qa7+ {[%emt 0:00:00]} Qd7 $2 {[%emt 0:00:06]} (53... Ke6 $11) 54. Qd4 $2 {[%emt 0:00:00]} (54. Qc7 $18 Qxc7 55. dxc7) 54... Bxe4 $11 {[%emt 0:00:25]} 1/2-1/2

[Event "Int SVK-ch Open 2020"]
[Site "Drienica"]
[Date "2020.08.08"]
[Round "2.11"]
[White "Kravec Patrik"]
[Black "Steiniger, Florian"]
[Result "1/2-1/2"]
[ECO "B08"]
[WhiteElo "2119"]
[BlackElo "1899"]
[Annotator "ChessBase"]
[PlyCount "45"]
[EventDate "2020.08.07"]
[EventType "swiss"]
[EventCountry "SVK"]
[SourceTitle "playchess.com"]
[Source "ChessBase"]
[SourceQuality "1"]
[TimeControl "40/5400+30:1800+30"]

1. Nf3 {[%emt 0:00:00]} g6 {[%emt 0:00:00]} 2. e4 {[%emt 0:00:50]} Bg7 {[%emt 0:00:00]} 3. d4 {[%emt 0:00:27]} d6 {[%emt 0:00:23]} 4. Nc3 {[%emt 0:00:20]} Nf6 {[%emt 0:00:31]} 5. Be2 {[%emt 0:00:10]} O-O {[%emt 0:00:49]} 6. O-O {[%emt 0:00:10]} a6 {[%emt 0:01:21]} 7. a4 {[%emt 0:00:15]} Nc6 {[%emt 0:00:44]} 8. Bg5 {[%emt 0:04:54]} h6 {[%emt 0:02:02]} 9. Bc1 {[%emt 0:02:58]} e5 {[%emt 0:05:33]} 10. h3 {[%emt 0:02:26]} exd4 {[%emt 0:05:17]} 11. Nxd4 {[%emt 0:00:41]} Nxd4 {[%emt 0:00:37]} 12. Qxd4 {[%emt 0:00:20]} Re8 {[%emt 0:02:17]} 13. Qd3 {[%emt 0:01:26]} Nd7 {[%emt 0:05:43]} 14. Be3 {[%emt 0:09:46]} Nc5 {[%emt 0:08:31]} 15. Qd2 {[%emt 0:11:55]} Nxe4 {[%emt 0:07:21]} 16. Nxe4 {[%emt 0:00:38]} Rxe4 {[%emt 0:00:07]} 17. Bf3 {[%emt 0:01:43]} Rh4 {[%emt 0:02:14]} 18. c3 {[%emt 0:03:58]} Rb8 {[%emt 0:02:17]} 19. Ba7 {[%emt 0:04:13]} Ra8 {[%emt 0:00:12]} 20. Be3 {[%emt 0:00:04]} Rb8 {[%emt 0:00:51]} 21. Ba7 {[%emt 0:04:17]} Ra8 {[%emt 0:00:10]} 22. Be3 {[%emt 0:00:04]} Rb8 {[%emt 0:00:06]} 23. Ba7 {[%emt 0:05:58]} 1/2-1/2

[Event "Int SVK-ch Open 2020"]
[Site "Drienica"]
[Date "2020.08.08"]
[Round "2.11"]
[White "Tomanek, Rafael"]
[Black "Kapolkova, Greta"]
[Result "1/2-1/2"]
[ECO "D60"]
[WhiteElo "1821"]
[BlackElo "1545"]
[Annotator "NA"]
[PlyCount "103"]
[EventDate "2020.08.07"]
[EventType "swiss"]
[EventCountry "SVK"]
[SourceTitle "playchess.com"]
[Source "ChessBase"]
[SourceQuality "1"]
[TimeControl "40/5400+30:1800+30"]

{[%evp 8,94,25,25,18,32767,32767,32767,32767,32767,32767,32767,6,32767,32767,13,32767,3,32767,32767,0,0,32767,32767,8,0,9,32767,32767,32767,10,32767,11,32767,32767,16,32767,32767,32767,-16,32767,32767,32767,32767,32767,32767,-24,-74,-9,-39,-10,-48,-59,-53,-68,32767,32767,32767,32767,32767,-116,32767,-67,32767,-91,-112,-75,-142,-122,-104,-129,32767,-77,-133,-79,32767,-62,32767,-52,-103,-43,-83,-33,-16,-19,-24,-11,-23,0]} 1. d4 {[%emt 0:00:00]} d5 {[%emt 0:00:03]} 2. Nf3 {[%emt 0:00:00]} Nf6 {[%emt 0:00:16]} 3. c4 {[%emt 0:00:01]} e6 {[%emt 0:00:12]} 4. Nc3 {[%emt 0:00:18]} Be7 {[%emt 0:00:21]} 5. Bg5 {[%emt 0:00:16]} O-O {[%emt 0:00:47]} 6. e3 {[%emt 0:00:06]} Nbd7 {[%emt 0:00:51]} 7. Bd3 {[%emt 0:00:57]} h6 {[%emt 0:00:43]} 8. Bh4 {[%emt 0:00:40]} b6 {[%emt 0:01:56]} 9. cxd5 {[%emt 0:02:28]} Nxd5 {[%emt 0:00:50]} 10. Bxe7 {[%emt 0:00:30]} Qxe7 {[%emt 0:00:18]} 11. Nxd5 {[%emt 0:00:31]} exd5 {[%emt 0:00:23]} 12. O-O {[%emt 0:02:21]} c5 {[%emt 0:01:03]} 13. dxc5 {[%emt 0:01:51]} bxc5 {[%emt 0:00:25]} 14. Rc1 {[%emt 0:07:37] D59: Queen's Gambit Declined: Tartakower Defence: Main line (8 cxd5 Nxd5).} Rb8 {[%emt 0:01:48]} 15. b3 {[%emt 0:07:12]} Bb7 {[%emt 0:02:48] [#]} 16. Qe2 $146 {[%emt 0:05:37]} ({Predecessor:} 16. Bb1 f5 17. Bd3 f4 18. Re1 fxe3 19. Rxe3 Qf6 20. Qe1 d4 21. Re6 Qf4 22. Be4 Bxe4 23. Rxe4 {½-½ (59) Niedergesaess,H (1906)-Schmidt,W (1988) Oberjoch 2002}) 16... Qd6 {[%emt 0:02:09]} 17. Rfe1 {[%emt 0:14:48]} Rfe8 {[%emt 0:00:31]} 18. Qd2 {[%emt 0:08:06]} a6 {[%emt 0:05:42]} 19. Bf5 {[%emt 0:07:28]} Rbc8 {[%emt 0:01:30]} 20. Rc3 {[%emt 0:02:03]} Rc7 {[%emt 0:04:12]} 21. Rec1 {[%emt 0:02:18]} Rd8 {[%emt 0:03:21]} 22. a3 {[%emt 0:06:11]} Nf6 {[%emt 0:01:21]} 23. b4 {[%emt 0:01:00]} c4 {[%emt 0:02:18]} 24. Nd4 {[%emt 0:01:42]} g6 {[%emt 0:01:27]} 25. Bb1 {[%emt 0:01:21]} Ng4 {[%emt 0:01:35]} 26. g3 {[%emt 0:00:15]} Ne5 {[%emt 0:01:24]} 27. f4 {[%emt 0:04:43]} Nc6 {[%emt 0:01:39]} 28. Rf1 {[%emt 0:03:59]} f5 {[%emt 0:01:35]} 29. Nxc6 {[%emt 0:01:48]} Bxc6 {[%emt 0:05:02]} 30. Qd4 {[%emt 0:00:34]} Kf7 {[%emt 0:03:36]} 31. Rf2 {[%emt 0:00:43]} Qf6 {[%emt 0:02:32]} 32. Rd2 {[%emt 0:00:44]} Qxd4 {[%emt 0:00:43]} 33. Rxd4 {[%emt 0:00:02]} Re8 {[%emt 0:01:09]} 34. Kf2 {[%emt 0:00:27]} Rd7 {[%emt 0:00:50]} 35. Bc2 {[%emt 0:00:30]} Kf6 {[%emt 0:00:54]} 36. h3 {[%emt 0:06:20]} h5 {[%emt 0:00:32]} 37. Kf3 {[%emt 0:00:53]} Rh8 {[%emt 0:02:31]} 38. h4 {[%emt 0:01:16]} Rb8 {[%emt 0:00:42]} 39. Kf2 {[%emt 0:02:05] [#]} Kf7 {[%emt 0:00:17]} (39... a5 $1 $19 {[%mdl 512] has better winning chances.} 40. bxa5 Rb2) 40. Bd1 {[%emt 0:01:31] [#]} Rbd8 {[%emt 0:00:54]} ({Black should play} 40... a5 $1 {[%mdl 512]} 41. bxa5 Ra7) 41. Bf3 {[%emt 0:30:22]} Kf6 {[%emt 0:31:03]} 42. Ke1 {[%emt 0:00:35]} Ke7 {[%emt 0:00:31]} ({Better is} 42... Rb8 $17 43. Kd2 Ke6) 43. Kd2 {[%emt 0:01:13] [#]} Ke6 {[%emt 0:01:15]} (43... a5 $1 $17 {[%mdl 512]} 44. bxa5 Ba8) 44. Rc1 {[%emt 0:00:53]} Ba4 {[%emt 0:00:19]} (44... Rb8 $17 45. Kc3 {[#]} a5 $1 {[%mdl 512]}) 45. Kc3 {[%emt 0:01:06]} Rc8 {[%emt 0:00:54]} 46. Rb1 {[%emt 0:00:53]} Rb8 {[%emt 0:00:18]} 47. Rb2 {[%emt 0:01:13]} Rc8 $11 {[%emt 0:01:13]} 48. Rbd2 {[%emt 0:01:20]} Rcd8 {[%emt 0:00:08]} 49. Bg2 {[%emt 0:00:34]} Rd6 {[%emt 0:00:37]} 50. Bf1 {[%emt 0:00:59]} Bb5 {[%emt 0:00:20]} 51. Be2 {[%emt 0:00:11]} Ba4 {[%emt 0:00:54]} 52. Bf3 1/2-1/2

[Event "Int SVK-ch Open 2020"]
[Site "Drienica"]
[Date "2020.08.08"]
[Round "2.12"]
[White "Strapec, Lukas"]
[Black "Banoci, Jaroslav"]
[Result "1-0"]
[ECO "A85"]
[WhiteElo "1517"]
[BlackElo "1831"]
[Annotator "NA"]
[PlyCount "91"]
[EventDate "2020.08.07"]
[EventType "swiss"]
[EventCountry "SVK"]
[SourceTitle "playchess.com"]
[Source "ChessBase"]
[SourceQuality "1"]
[TimeControl "40/5400+30:1800+30"]

{[%evp 9,86,22,29,23,32767,32767,32767,32767,104,54,32767,87,32767,32767,32767,32767,22,32767,70,58,32767,32767,32767,67,72,57,67,51,135,24,64,32767,32767,32767,78,32767,128,118,141,136,32767,32767,155,154,233,273,32767,339,325,32767,32767,32767,32767,32767,32767,32767,32767,32767,32767,32767,221,32767,32767,136,127,158,32767,153,156,32767,32767,0,335,431,493,554,1306,1664,7125]} 1. d4 {[%emt 0:00:00]} f5 {[%emt 0:01:38]} 2. c4 {[%emt 0:00:13]} Nf6 {[%emt 0:00:10]} 3. Nc3 {[%emt 0:01:01]} d6 {[%emt 0:00:42]} 4. Nf3 {[%emt 0:01:07]} g6 {[%emt 0:00:56]} 5. g3 {[%emt 0:04:45]} Bg7 {[%emt 0:05:23]} 6. Bg2 {[%emt 0:02:33]} O-O {[%emt 0:00:16]} 7. O-O {[%emt 0:02:09]} h6 {[%emt 0:01:50] 7...c6 is the modern continuation.} 8. Re1 {[%emt 0:07:47] A87: Dutch Defence: Leningrad System: 5 Nf3.} Kh7 {[%emt 0:07:29]} 9. Qb3 {[%emt 0:14:49] [#]} Nc6 $146 {[%emt 0:07:02]} ({Predecessor:} 9... Nh5 10. Qc2 Nc6 11. e3 e5 12. dxe5 dxe5 13. Rd1 Qe8 14. Nd5 Qf7 15. Bd2 e4 {0-1 (53) Petry,C-Fontana,R Piratuba 1996}) 10. d5 {[%emt 0:09:04]} Na5 {[%emt 0:05:29]} 11. Qa4 {[%emt 0:03:56]} b6 {[%emt 0:01:09]} 12. Nd2 {[%emt 0:03:28]} Ng4 {[%emt 0:07:51]} 13. Qc2 {[%emt 0:05:10]} Rb8 {[%emt 0:03:58]} (13... f4 $11) 14. b4 {[%emt 0:03:18]} Nb7 {[%emt 0:01:07]} 15. Bb2 {[%emt 0:04:44]} e5 {[%emt 0:01:35]} 16. dxe6 {[%emt 0:02:47]} Bxe6 {[%emt 0:00:31]} 17. Nd5 {[%emt 0:00:59]} Bxb2 {[%emt 0:06:40]} 18. Qxb2 {[%emt 0:01:32]} Bxd5 {[%emt 0:03:43]} ({Better is} 18... f4 $14) 19. Bxd5 {[%emt 0:02:02]} (19. cxd5 $16 a5 20. a3) 19... Qd7 {[%emt 0:01:41]} 20. h3 Nf6 {[%emt 0:02:38]} 21. Bg2 {[%emt 0:10:25]} c6 {[%emt 0:01:10]} 22. e4 {[%emt 0:01:25]} fxe4 {[%emt 0:11:52]} (22... f4 $1 $14) 23. Nxe4 {[%emt 0:01:35]} Nxe4 {[%emt 0:00:18]} 24. Rxe4 {[%emt 0:01:10]} Rbe8 {[%emt 0:01:02]} 25. Rae1 {[%emt 0:03:46]} Rxe4 {[%emt 0:04:09]} 26. Rxe4 {[%emt 0:01:49]} Rf7 {[%emt 0:02:50]} (26... d5 $16 27. cxd5 cxd5) 27. Qe2 {[%emt 0:02:52]} Nd8 {[%emt 0:02:52]} 28. h4 {[%emt 0:01:52]} d5 {[%emt 0:02:30]} 29. Rd4 {[%emt 0:02:15]} Ne6 {[%emt 0:00:24]} 30. Rd2 {[%emt 0:01:26]} d4 {[%emt 0:00:49]} 31. Bh3 {[%emt 0:01:42]} Re7 {[%emt 0:00:18]} 32. Bxe6 {[%emt 0:01:14]} Rxe6 {[%emt 0:01:04]} 33. Rxd4 {[%emt 0:01:19]} Qe7 {[%emt 0:00:20]} 34. Qd2 {[%emt 0:00:40]} Qf7 {[%emt 0:02:07]} 35. Rd7 {[%emt 0:01:15]} Re7 {[%emt 0:00:29]} 36. Rxe7 {[%emt 0:00:32]} Qxe7 {[%emt 0:00:15]} 37. a3 {[%emt 0:00:45]} Kg7 {[%emt 0:00:36]} 38. Qd4+ {[%emt 0:00:35]} Kf7 {[%emt 0:02:22]} 39. Qe3 {[%emt 0:00:49]} Qf6 {[%emt 0:02:36]} 40. Qf4 $2 {[%emt 0:00:33]} (40. Qxh6 $18 Qa1+ 41. Kg2) 40... Ke6 $2 {[%emt 0:01:20]} (40... Qxf4 $11 41. gxf4 Kf6) 41. Qxh6 {[%emt 0:04:45]} Qa1+ {[%emt 0:01:32]} 42. Kg2 {[%emt 0:01:24]} Qxa3 {[%emt 0:00:16]} (42... Qb1 $142 43. Qe3+ Kd7) 43. Qxg6+ {[%emt 0:00:11]} Ke5 $18 {[%emt 0:01:25]} 44. Qxc6 {[%emt 0:01:34]} Qxb4 {[%emt 0:00:30]} 45. Qb5+ {[%emt 0:00:42]} Qxb5 {[%emt 0:00:20]} 46. cxb5 {[%emt 0:00:07]} 1-0

[Event "Int SVK-ch Open 2020"]
[Site "Drienica"]
[Date "2020.08.08"]
[Round "2.13"]
[White "Tomcik, Milan"]
[Black "Buran Jaroslav"]
[Result "1/2-1/2"]
[ECO "B19"]
[WhiteElo "1981"]
[BlackElo "2098"]
[Annotator "ChessBase"]
[PlyCount "22"]
[EventDate "2020.08.07"]
[EventType "swiss"]
[EventCountry "SVK"]
[SourceTitle "playchess.com"]
[Source "ChessBase"]
[SourceQuality "1"]
[TimeControl "40/5400+30:1800+30"]

1. e4 {[%emt 0:00:13]} c6 {[%emt 0:00:10]} 2. d4 {[%emt 0:00:06]} d5 {[%emt 0:00:12]} 3. Nd2 {[%emt 0:00:18]} dxe4 {[%emt 0:01:20]} 4. Nxe4 {[%emt 0:00:08]} Bf5 {[%emt 0:00:38]} 5. Ng3 {[%emt 0:00:06]} Bg6 {[%emt 0:00:38]} 6. h4 {[%emt 0:00:25]} h6 {[%emt 0:00:12]} 7. h5 {[%emt 0:00:10]} Bh7 {[%emt 0:00:07]} 8. Nf3 {[%emt 0:00:16]} Nd7 {[%emt 0:00:22]} 9. Bd3 {[%emt 0:00:10]} Bxd3 {[%emt 0:00:15]} 10. Qxd3 {[%emt 0:00:08]} Ngf6 {[%emt 0:00:07]} 11. Bd2 {[%emt 0:03:20]} e6 {[%emt 0:00:16]} 1/2-1/2

[Event "Int SVK-ch Open 2020"]
[Site "Drienica"]
[Date "2020.08.08"]
[Round "2.13"]
[White "Sosovickova, Jana"]
[Black "Tegda, Michal"]
[Result "1-0"]
[ECO "C50"]
[WhiteElo "1820"]
[BlackElo "1496"]
[Annotator "NA"]
[PlyCount "95"]
[EventDate "2020.08.07"]
[EventType "swiss"]
[EventCountry "SVK"]
[SourceTitle "playchess.com"]
[Source "ChessBase"]
[SourceQuality "1"]
[TimeControl "40/5400+30:1800+30"]

1. e4 {[%emt 0:00:00]} e5 {[%emt 0:00:00]} 2. Nf3 {[%emt 0:00:33]} Nc6 {[%emt 0:00:00]} 3. Bc4 {[%emt 0:00:38]} d6 {[%emt 0:00:36]} 4. d3 {[%emt 0:01:05]} Be7 {[%emt 0:01:07]} 5. c3 {[%emt 0:01:27]} h6 {[%emt 0:00:29] [#]} 6. Qb3 $146 {[%emt 0:02:03] C50: Hungarian Defence and Giuoco Pianissimo.} ({Predecessor:} 6. O-O Nf6 7. Re1 d5 8. exd5 Nxd5 9. Nxe5 Be6 10. Nxc6 bxc6 11. Qh5 g6 12. Qe5 {1-0 (28) Delen,M-Dalgali,E Konya 2019}) 6... Bf6 {[%emt 0:10:14]} 7. Bxf7+ {[%emt 0:00:36]} Kf8 {[%emt 0:00:02]} 8. Bh5 {[%emt 0:11:28]} Qe7 {[%emt 0:02:37]} 9. Nbd2 {[%emt 0:06:07]} Qe6 {[%emt 0:05:31]} 10. Qxe6 {[%emt 0:03:38]} Bxe6 {[%emt 0:04:15]} 11. O-O {[%emt 0:00:19]} Nge7 {[%emt 0:00:39]} 12. Ne1 {[%emt 0:01:08]} g6 {[%emt 0:02:47]} 13. Be2 {[%emt 0:02:33]} Ke8 {[%emt 0:06:35]} 14. f4 {[%emt 0:01:14]} exf4 {[%emt 0:02:52]} 15. Rxf4 {[%emt 0:00:58]} Bg5 {[%emt 0:01:03]} 16. Rf1 {[%emt 0:00:24]} Kd7 {[%emt 0:02:34]} 17. Nef3 {[%emt 0:01:32]} Be3+ {[%emt 0:02:58]} 18. Kh1 {[%emt 0:02:45]} Raf8 {[%emt 0:11:49]} 19. Nb3 {[%emt 0:04:16]} Bb6 {[%emt 0:02:01]} 20. d4 {[%emt 0:07:08]} Bxb3 {[%emt 0:03:34]} (20... d5 {was called for.}) 21. axb3 {[%emt 0:00:13]} g5 {[%emt 0:03:40]} 22. Bd2 {[%emt 0:06:26]} g4 {[%emt 0:07:20]} 23. Nh4 {[%emt 0:03:42]} Rxf1+ {[%emt 0:00:33]} 24. Rxf1 {[%emt 0:00:15]} h5 {[%emt 0:00:15]} 25. Bb5 {[%emt 0:03:03]} a6 {[%emt 0:00:32]} 26. Ba4 {[%emt 0:01:35]} Kc8 {[%emt 0:01:33]} 27. Rf7 {[%emt 0:02:47]} Re8 {[%emt 0:06:23]} 28. d5 {[%emt 0:02:06]} Nxd5 {[%emt 0:00:44]} 29. exd5 {[%emt 0:00:21]} Re2 {[%emt 0:00:34]} 30. dxc6 {[%emt 0:00:30]} Kb8 {[%emt 0:01:22]} 31. Rf8+ {[%emt 0:01:57]} Ka7 {[%emt 0:00:11]} 32. cxb7 {[%emt 0:00:16]} Kxb7 {[%emt 0:00:30]} 33. Rf1 {[%emt 0:01:04]} Rxd2 {[%emt 0:00:25]} 34. Rb1 {[%emt 0:00:51]} c6 {[%emt 0:03:32]} 35. Nf5 {[%emt 0:02:19]} Kc7 {[%emt 0:01:20]} 36. Ne7 {[%emt 0:01:48]} c5 {[%emt 0:00:52]} 37. c4 $18 {[%emt 0:00:24]} Kd8 {[%emt 0:03:35]} 38. Nd5 {[%emt 0:01:42]} Bc7 {[%emt 0:00:36]} 39. Nf6 {[%emt 0:05:59]} Bb6 {[%emt 0:02:59]} 40. Nxh5 {[%emt 0:01:22]} d5 {[%emt 0:00:11]} 41. cxd5 {[%emt 0:30:30]} Rxd5 {[%emt 0:30:10]} 42. Nf6 {[%emt 0:01:04]} Rd4 {[%emt 0:00:14]} 43. Re1 {[%emt 0:02:26]} a5 {[%emt 0:02:27]} 44. Ne4 {[%emt 0:03:43]} c4 {[%emt 0:00:52]} 45. bxc4 {[%emt 0:01:17]} Rxc4 {[%emt 0:00:11]} 46. Nc3 {[%emt 0:00:46]} Bd4 {[%emt 0:00:39]} 47. Re4 {[%emt 0:03:38]} Rb4 {[%emt 0:00:27]} 48. Re8+ {[%emt 0:00:11]} 1-0

[Event "Int SVK-ch Open 2020"]
[Site "Drienica"]
[Date "2020.08.08"]
[Round "2.14"]
[White "Frink Ferenc"]
[Black "Antal, Jakub"]
[Result "1-0"]
[ECO "B03"]
[WhiteElo "2079"]
[BlackElo "1918"]
[Annotator "ChessBase"]
[PlyCount "50"]
[EventDate "2020.08.07"]
[EventType "swiss"]
[EventCountry "SVK"]
[SourceTitle "playchess.com"]
[Source "ChessBase"]
[SourceQuality "1"]
[TimeControl "40/5400+30:1800+30"]

1. e4 {[%emt 0:00:00]} Nf6 {[%emt 0:00:10]} 2. e5 {[%emt 0:00:55]} Nd5 {[%emt 0:00:14]} 3. d4 {[%emt 0:00:30]} d6 {[%emt 0:00:30]} 4. f4 {[%emt 0:00:30]} dxe5 {[%emt 0:05:18]} 5. fxe5 {[%emt 0:00:02]} Nc6 {[%emt 0:01:20]} 6. c3 {[%emt 0:00:19]} Bf5 {[%emt 0:00:52]} 7. Bd3 {[%emt 0:00:41]} Qd7 {[%emt 0:19:01]} 8. Nf3 {[%emt 0:00:21]} Bxd3 {[%emt 0:04:03]} 9. Qxd3 {[%emt 0:00:05]} e6 {[%emt 0:00:28]} 10. O-O {[%emt 0:00:17]} Be7 {[%emt 0:01:27]} 11. b4 {[%emt 0:01:48]} f6 {[%emt 0:12:37]} 12. b5 {[%emt 0:01:41]} Nd8 {[%emt 0:00:45]} 13. Ba3 {[%emt 0:02:49]} Nf7 {[%emt 0:05:22]} 14. exf6 {[%emt 0:03:13]} Bxf6 {[%emt 0:06:55]} 15. Nbd2 {[%emt 0:01:13]} O-O-O {[%emt 0:06:59]} 16. Nb3 {[%emt 0:02:52]} e5 {[%emt 0:06:36]} 17. Rae1 {[%emt 0:04:26]} Rhe8 {[%emt 0:12:12]} 18. dxe5 {[%emt 0:13:02]} Nxe5 {[%emt 0:01:28]} 19. Nxe5 {[%emt 0:00:36]} Bxe5 {[%emt 0:00:22]} 20. c4 {[%emt 0:00:42]} Nc3 {[%emt 0:05:23]} 21. Qf3 {[%emt 0:01:23]} Bd4+ {[%emt 0:01:46]} 22. Kh1 {[%emt 0:00:39]} Kb8 {[%emt 0:03:50]} 23. Rxe8 {[%emt 0:06:53]} Rxe8 {[%emt 0:00:29]} 24. Nxd4 {[%emt 0:00:20]} Qxd4 {[%emt 0:00:34]} 25. Bb2 {[%emt 0:00:09]} Qe4 {[%emt 0:01:42]} 1-0

[Event "Int SVK-ch Open 2020"]
[Site "Drienica"]
[Date "2020.08.08"]
[Round "2.14"]
[White "Kulich, Daniel"]
[Black "Recky, Norbert"]
[Result "1/2-1/2"]
[ECO "A45"]
[WhiteElo "1492"]
[BlackElo "1799"]
[Annotator "NA"]
[PlyCount "54"]
[EventDate "2020.08.07"]
[EventType "swiss"]
[EventCountry "SVK"]
[SourceTitle "playchess.com"]
[Source "ChessBase"]
[SourceQuality "1"]
[TimeControl "40/5400+30:1800+30"]

1. d4 {[%emt 0:00:00]} Nf6 {[%emt 0:00:00]} 2. Bf4 {[%emt 0:00:00]} g6 {[%emt 0:00:02]} 3. Nc3 {[%emt 0:00:00]} d5 {[%emt 0:00:11]} 4. Qd2 {[%emt 0:00:00]} Bg7 {[%emt 0:00:08]} 5. Bh6 {[%emt 0:00:08]} O-O {[%emt 0:00:08]} 6. Bxg7 {[%emt 0:00:06]} Kxg7 {[%emt 0:00:07]} 7. O-O-O {[%emt 0:00:17]} c6 {[%emt 0:00:23]} 8. f3 {[%emt 0:00:13]} b5 {[%emt 0:00:14]} 9. g4 {[%emt 0:01:17]} a5 {[%emt 0:03:01]} 10. h4 {[%emt 0:01:07]} h5 {[%emt 0:00:13]} 11. gxh5 {[%emt 0:06:14]} Nxh5 {[%emt 0:00:10]} 12. Nh3 {[%emt 0:00:19]} Nd7 {[%emt 0:02:22]} 13. e4 {[%emt 0:01:09]} Nb6 {[%emt 0:01:43]} 14. Nf4 {[%emt 0:01:48]} Rh8 {[%emt 0:04:22]} 15. Nce2 {[%emt 0:03:00]} Nc4 {[%emt 0:09:19]} 16. Qe1 {[%emt 0:03:51]} Nxf4 {[%emt 0:08:18]} 17. Nxf4 {[%emt 0:00:13]} Qd6 {[%emt 0:01:29]} 18. Nd3 {[%emt 0:21:16]} dxe4 {[%emt 0:03:10]} 19. Qxe4 {[%emt 0:00:48]} Bf5 {[%emt 0:00:33]} 20. Qf4 {[%emt 0:02:04]} Bxd3 {[%emt 0:09:43]} 21. Qxd6 {[%emt 0:00:41]} Nxd6 {[%emt 0:00:13]} 22. Bxd3 {[%emt 0:00:11]} Rh5 {[%emt 0:00:21]} 23. Rdg1 {[%emt 0:01:23]} Rah8 {[%emt 0:09:02]} 24. Rg4 {[%emt 0:08:24]} g5 {[%emt 0:00:54]} 25. Rhg1 {[%emt 0:02:59]} Rxh4 {[%emt 0:02:09]} 26. Rxg5+ {[%emt 0:01:28]} Kf6 {[%emt 0:00:29]} 27. c3 {[%emt 0:03:26]} R8h5 {[%emt 0:03:25]} 1/2-1/2